Cogmind - Beta 11 X6 @@@ ROGUE MODE // 2021.08.03 @ 21:25:19 Player: Luigi Panache Result: Destroyed by S-27 Virus with Autogun Performance ------------- Evolutions (4) 2000 Regions Visited (11) 2200 Robots Destroyed (20) 100 Value Destroyed (234) 234 Prototype IDs (23) 460 Alien Tech Used (0) 0 Bonus (300) 300 TOTAL SCORE: 5294 Bonus ------- Aligned with FarCom 300 Cogmind --------- Core Integrity 0/850 Matter 300/300 Energy 98/100 System Corruption 0% Temperature Cool (0) Movement Core (50) Location -6/Lower Caves Parts ------- > --- POWER (1) -------- (None) > --- PROPULSION (2) --- (None) > --- UTILITY (10) ----- Enhanced Optical Array 0b10 Alert Chip > --- WEAPON (2) ------- (None) > --- INVENTORY (5) ---- Micro Nuclear Core Energy Well (350) Matter Compressor (250) Cloak of Protection Peak State ------------ > --- POWER ------------ (None) > --- PROPULSION ------- (None) > --- UTILITY ---------- Enhanced Optical Array 0b10 Alert Chip > --- WEAPON ----------- Power Sword > --- INVENTORY -------- Micro Nuclear Core Energy Well Matter Compressor Cloak of Protection [Rating: 18] Favorites ----------- Power None Propulsion None Utility Seismic Analyzer Device Improved Terrain Scanner Storage Matter Compressor Processor Seismic Analyzer Protection Hardened Medium Armor Plating Weapon Light Assault Rifle Ballistic Gun Light Assault Rifle Special Weapon Plasma Cutter Impact Weapon Great Maul Slashing Weapon Power Sword Build | -11 -10 -10 -10 -9 -8 -7 -7 -7 -6 -6 -6 ------- Run | Scr Mat Min Exi Min Mat Fac Low Low Fac Low Low Slots Evolved 8 | . . . . . 4 2 . . 2 . . Power . | . . . . . . . . . . . . Propulsion . | . . . . . . . . . . . . Utility 8 | . . . . . 4 2 . . 2 . . Weapon . | . . . . . . . . . . . . Parts Attached 23 | 3 1 5 . . 2 . 2 1 7 2 . Power . | . . . . . . . . . . . . Engine . | . . . . . . . . . . . . Core . | . . . . . . . . . . . . Reactor . | . . . . . . . . . . . . Propulsion . | . . . . . . . . . . . . Treads . | . . . . . . . . . . . . Leg . | . . . . . . . . . . . . Wheel . | . . . . . . . . . . . . Hover . | . . . . . . . . . . . . Flight . | . . . . . . . . . . . . Utility 8 | 1 1 . . . . . 1 1 3 1 . Device 2 | . 1 . . . . . . . 1 . . Storage 1 | . . . . . . . . . 1 . . Processor 4 | 1 . . . . . . 1 . 1 1 . Hackware . | . . . . . . . . . . . . Protection 1 | . . . . . . . . 1 . . . Artifact . | . . . . . . . . . . . . Weapon 15 | 2 . 5 . . 2 . 1 . 4 1 . Energy Gun . | . . . . . . . . . . . . Energy Cannon . | . . . . . . . . . . . . Ballistic Gun 8 | 2 . 5 . . 1 . . . . . . Ballistic Cannon . | . . . . . . . . . . . . Launcher . | . . . . . . . . . . . . Special Weapon 2 | . . . . . . . . . 2 . . Impact Weapon 1 | . . . . . 1 . . . . . . Slashing Weapon 4 | . . . . . . . 1 . 2 1 . Piercing Weapon . | . . . . . . . . . . . . Special Melee Weapon . | . . . . . . . . . . . . Unidentified Prototypes . | . . . . . . . . . . . . Parts Lost 10 | . . 1 . . 1 1 1 2 . 3 1 Power . | . . . . . . . . . . . . Propulsion . | . . . . . . . . . . . . Utility 4 | . . . . . . 1 . 1 . 2 . Weapon 6 | . . 1 . . 1 . 1 1 . 1 1 Highest Loss Streak 3 | . . 1 . . 1 1 1 2 . 3 1 Average Slot Usage (%) 32 | . 41 55 57 57 36 19 12 15 20 17 14 Device 6 | . 13 14 14 14 9 4 . . 2 . . Processor 12 | . 14 14 14 14 9 7 10 12 11 12 13 Ballistic Gun 11 | . 14 26 28 28 17 7 . . . . . Slashing Weapon 1 | . . . . . . . 1 . 3 3 . Naked Turns . | . . . . . . . . . . . . Heaviest Build 8 | 3 3 3 3 3 3 2 3 8 4 3 3 Greatest Support 3 | 3 3 3 3 3 3 3 3 3 3 3 3 Greatest Overweight (x) 2 | . . . . . . . . 2 1 . . Average Overweight (x) . | . . . . . . . . . . . . Largest Inventory Capacity 5 | 5 5 5 5 5 5 5 5 5 5 5 5 Average Capacity 5 | 5 5 5 5 5 5 5 5 5 5 5 5 Most Carried 5 | 5 5 5 5 5 5 5 5 5 5 5 4 Average Carried 4 | 3 4 4 4 4 5 5 5 5 4 4 4 Final Capacity 5 | 5 5 5 5 5 5 5 5 5 5 5 5 Final Carried 5 | 4 5 5 5 5 5 5 5 5 5 4 4 Class Distribution -------------------- 69% | Mutant 21% | Scavenger-Mutant 9% | Scavenger-Scout Dominant Class ---------------- Mutant | -10/Materials Scavenger-Mutant | -10/Mines Scavenger-Mutant | -10/Exiles Scavenger-Scout | -9/Mines Scavenger-Scout | -8/Materials Mutant | -7/Factory Mutant | -7/Lower Caves Mutant | -7/Lower Caves Mutant | -6/Factory Mutant | -6/Lower Caves Mutant | -6/Lower Caves Resources | -11 -10 -10 -10 -9 -8 -7 -7 -7 -6 -6 -6 ----------- Run | Scr Mat Min Exi Min Mat Fac Low Low Fac Low Low Matter Collected 1030 | 255 16 112 55 44 139 . 81 . 285 43 . Remotely . | . . . . . . . . . . . . Salvage Created 477 | 138 137 141 . . . . . . . 61 . Parts 40 | 12 10 14 . . . . . . . 4 . Haulers Intercepted 1 | . 1 . . . . . . . . . . Recyclers Shooed 1 | . . 1 . . . . . . . . . Parts Field Recycled . | . . . . . . . . . . . . Retrieved Matter . | . . . . . . . . . . . . Parts Self-Destructed 6 | . . . . . . . 2 . . 4 . Prevented . | . . . . . . . . . . . . Kills | -11 -10 -10 -10 -9 -8 -7 -7 -7 -6 -6 -6 ------- Run | Scr Mat Min Exi Min Mat Fac Low Low Fac Low Low Combat Hostiles Destroyed 14 | . 4 9 . . . . . . . 1 . Melee 1 | . . . . . . . . . . 1 . Guns 13 | . 4 9 . . . . . . . . . Classes Destroyed 7 | 2 4 . . . . . . . . 1 . Worker 1 | . 1 . . . . . . . . . . Tunneler 3 | 3 . . . . . . . . . . . Hauler 1 | . 1 . . . . . . . . . . Recycler 1 | 1 . . . . . . . . . . . Swarmer 12 | . 3 9 . . . . . . . . . Grunt 1 | . 1 . . . . . . . . . . Duelist 1 | . . . . . . . . . . 1 . Best Kill Streak 4 | 4 3 3 . . . . . . . 1 . Combat Bots Only 3 | . 3 3 . . . . . . . 1 . Max Kills in Single Turn 2 | 2 1 1 . . . . . . . 1 . Gunslinging . | . . . . . . . . . . . . Exploded . | . . . . . . . . . . . . Melee 1 | . . . . . . . . . . 1 . Uniques/NPCs Destroyed . | . . . . . . . . . . . . Combat | -11 -10 -10 -10 -9 -8 -7 -7 -7 -6 -6 -6 -------- Run | Scr Mat Min Exi Min Mat Fac Low Low Fac Low Low Damage Taken 2376 | . 86 269 . . 148 34 448 343 . 604 444 Core 1624 | . 39 80 . . 44 . 412 189 . 461 399 Absorbed by Shields . | . . . . . . . . . . . . Core Remaining (%) 64 | 100 . . . 52 92 . . 14 . . . Volleys Fired 60 | 7 26 25 . . . 1 . . 1 . . Largest 2 | 2 1 2 . . . 1 . . 1 . . Hottest 40 | 40 20 40 . . . 20 . . 20 . . Shots Fired 79 | 13 26 38 . . . 1 . . 1 . . Gun 78 | 13 26 38 . . . 1 . . . . . Cannon . | . . . . . . . . . . . . Launcher . | . . . . . . . . . . . . Special 1 | . . . . . . . . . 1 . . Kinetic 78 | 13 26 38 . . . 1 . . . . . Thermal 1 | . . . . . . . . . 1 . . Explosive . | . . . . . . . . . . . . Electromagnetic . | . . . . . . . . . . . . Robot Hit Streak 8 | 3 7 8 . . . . . . . . . Robot Miss Streak 4 | 1 3 4 . . . 1 . . . . . Penetration Max . | . . . . . . . . . . . . Secondary Targets . | . . . . . . . . . . . . Shots Hit Robots 45 | 8 17 19 . . . . . . . 1 . Core Hits 25 | 5 8 11 . . . . . . . 1 . Critical Kills 1 | . . 1 . . . . . . . . . Critical Parts Destroyed 1 | . . 1 . . . . . . . . . Critical Strikes 2 | . . 2 . . . . . . . . . Destroy 2 | . . 2 . . . . . . . . . Melee Attacks 23 | . . . . . 1 . . . 6 16 . Impact 1 | . . . . . 1 . . . . . . Slashing 22 | . . . . . . . . . 6 16 . Piercing . | . . . . . . . . . . . . Sneak Attacks . | . . . . . . . . . . . . Combat Hostiles . | . . . . . . . . . . . . Follow-up Attacks . | . . . . . . . . . . . . Damage Inflicted 525 | 92 221 183 . . . . . . . 29 . Guns 496 | 92 221 183 . . . . . . . . . Cannons . | . . . . . . . . . . . . Explosions . | . . . . . . . . . . . . Melee 29 | . . . . . . . . . . 29 . Ramming . | . . . . . . . . . . . . Kinetic 496 | 92 221 183 . . . . . . . . . Thermal . | . . . . . . . . . . . . Explosive . | . . . . . . . . . . . . Electromagnetic . | . . . . . . . . . . . . Impact . | . . . . . . . . . . . . Slashing 29 | . . . . . . . . . . 29 . Piercing . | . . . . . . . . . . . . Highest Corruption . | . . . . . . . . . . . . Average Corruption . | . . . . . . . . . . . . Corruption Purged . | . . . . . . . . . . . . Overload Shots . | . . . . . . . . . . . . Overflow Damage . | . . . . . . . . . . . . Projectiles . | . . . . . . . . . . . . Explosions . | . . . . . . . . . . . . Melee . | . . . . . . . . . . . . Knockbacks . | . . . . . . . . . . . . Impact . | . . . . . . . . . . . . Kinetic . | . . . . . . . . . . . . Secondary . | . . . . . . . . . . . . Self-Inflicted Damage . | . . . . . . . . . . . . Shots . | . . . . . . . . . . . . Rammed 1 | . . . . . . . . . . 1 . Targets Rammed 1 | . . . . . . . . . . 1 . Kicked . | . . . . . . . . . . . . Crushed . | . . . . . . . . . . . . Highest Temperature . | . . . . . . . . . . . . Average Temperature . | . . . . . . . . . . . . Received Heat Transfer 294 | . 12 . . . 18 18 57 . . 171 18 Siege Activations . | . . . . . . . . . . . . Robots Corrupted . | . . . . . . . . . . . . Combat Hostiles . | . . . . . . . . . . . . Parts Fried . | . . . . . . . . . . . . Impact Corruptions . | . . . . . . . . . . . . Robots Melted . | . . . . . . . . . . . . Combat Hostiles . | . . . . . . . . . . . . Parts Melted . | . . . . . . . . . . . . Heat Transferred . | . . . . . . . . . . . . Parts Sabotaged . | . . . . . . . . . . . . Parts Stolen . | . . . . . . . . . . . . Parts Stripped . | . . . . . . . . . . . . Power Chain Reactions . | . . . . . . . . . . . . Missiles Intercepted . | . . . . . . . . . . . . Alert | -11 -10 -10 -10 -9 -8 -7 -7 -7 -6 -6 -6 ------- Run | Scr Mat Min Exi Min Mat Fac Low Low Fac Low Low Peak Influence 253 | 20 138 253 . . 16 106 . . 97 . . Initial 86 | . 13 53 . . . 2 . . 86 . . Average 80 | 5 57 179 . . 3 30 . . 89 . . Maximum Alert Level 1 | . . 1 . . . . . . . . . Low Security (%) 94 | 100 100 78 . 100 100 100 . . 100 . . Level 1 5 | . . 21 . . . . . . . . . Level 2 . | . . . . . . . . . . . . Level 3 . | . . . . . . . . . . . . Level 4 . | . . . . . . . . . . . . Level 5 . | . . . . . . . . . . . . High Security . | . . . . . . . . . . . . Max Security . | . . . . . . . . . . . . Squads Dispatched 6 | . 1 . . 1 2 2 . . . . . Investigation 4 | . 1 . . 1 1 1 . . . . . Extermination . | . . . . . . . . . . . . Reinforcement 2 | . . . . . 1 1 . . . . . Assault . | . . . . . . . . . . . . Garrison . | . . . . . . . . . . . . Intercept . | . . . . . . . . . . . . Construction Impeded . | . . . . . . . . . . . . Haulers Reinforced . | . . . . . . . . . . . . Active Scanning Responses . | . . . . . . . . . . . . Cargo Convoy Interrupts . | . . . . . . . . . . . . Stealth | -11 -10 -10 -10 -9 -8 -7 -7 -7 -6 -6 -6 --------- Run | Scr Mat Min Exi Min Mat Fac Low Low Fac Low Low Distress Signals 3 | . 1 . . . . 2 . . . . . Communications Jammed . | . . . . . . . . . . . . Distress Signals . | . . . . . . . . . . . . Times Spotted 69 | . 7 9 . . 6 9 8 5 . 16 9 Peak Tracking Total 10 | . 4 3 . . 5 9 7 4 . 9 10 Tactical Retreats 11 | . 1 . . . . 2 3 1 . 3 1 Traps | -11 -10 -10 -10 -9 -8 -7 -7 -7 -6 -6 -6 ------- Run | Scr Mat Min Exi Min Mat Fac Low Low Fac Low Low Traps Triggered 1 | . 1 . . . . . . . . . . Indirectly . | . . . . . . . . . . . . Trap Hack Attempts . | . . . . . . . . . . . . Triggered . | . . . . . . . . . . . . Disarmed . | . . . . . . . . . . . . Reprogrammed . | . . . . . . . . . . . . Reused . | . . . . . . . . . . . . Traps Extracted . | . . . . . . . . . . . . Installed . | . . . . . . . . . . . . Triggered 2 | . . . . . . . 1 . . 1 . Machines | -11 -10 -10 -10 -9 -8 -7 -7 -7 -6 -6 -6 ---------- Run | Scr Mat Min Exi Min Mat Fac Low Low Fac Low Low Machines Disabled . | . . . . . . . . . . . . Max in Single Turn . | . . . . . . . . . . . . Machines Sabotaged . | . . . . . . . . . . . . Garrisons Compromised . | . . . . . . . . . . . . Overloaded Fab Kills . | . . . . . . . . . . . . Fab Network Shutdowns . | . . . . . . . . . . . . Hacking | -11 -10 -10 -10 -9 -8 -7 -7 -7 -6 -6 -6 --------- Run | Scr Mat Min Exi Min Mat Fac Low Low Fac Low Low Machines Accessed 16 | . 2 1 2 1 1 4 2 . 3 . . Terminals 9 | . 2 . . . 1 3 1 . 2 . . Fabricators 2 | . . . . . . 1 . . 1 . . Repair Stations . | . . . . . . . . . . . . Recycling Units . | . . . . . . . . . . . . Scanalyzers . | . . . . . . . . . . . . Garrison Access . | . . . . . . . . . . . . Total Hacks 26 | . 5 1 2 1 2 7 2 . 6 . . Successful 10 | . 1 1 2 1 . 2 2 . 1 . . Failed 16 | . 4 . . . 2 5 . . 5 . . Catastrophic 4 | . 1 . . . 1 1 . . 1 . . Database Lockouts . | . . . . . . . . . . . . Manual 14 | . 5 . 1 . 1 5 . . 2 . . Terminals 19 | . 5 . . . 2 6 1 . 5 . . Fabricators 2 | . . . . . . 1 . . 1 . . Repair Stations . | . . . . . . . . . . . . Recycling Units . | . . . . . . . . . . . . Scanalyzers . | . . . . . . . . . . . . Garrison Access . | . . . . . . . . . . . . Terminal Hacks 8 | . 1 1 2 1 . . 2 . 1 . . Record 2 | . . . 1 . . . 1 . . . . Open Door 3 | . . 1 . 1 . . 1 . . . . Branch Access Points 2 | . 1 . . . . . . . 1 . . EX-Prototype ID Bank 1 | . . . 1 . . . . . . . . Fabricator Hacks . | . . . . . . . . . . . . Repair Station Hacks . | . . . . . . . . . . . . Recycling Unit Hacks . | . . . . . . . . . . . . Scanalyzer . | . . . . . . . . . . . . Garrison Access Hacks . | . . . . . . . . . . . . Unauthorized Hacks 2 | . . . . . . 2 . . . . . Terminals 1 | . . . . . . 1 . . . . . Botnet 1 | . . . . . . 1 . . . . . Fabricators 1 | . . . . . . 1 . . . . . Report 1 | . . . . . . 1 . . . . . Repair Stations . | . . . . . . . . . . . . Recycling Units . | . . . . . . . . . . . . Scanalyzers . | . . . . . . . . . . . . Garrison Access . | . . . . . . . . . . . . Data Cores Recovered . | . . . . . . . . . . . . Used . | . . . . . . . . . . . . Hacking Detections 9 | . 2 . . . 1 3 . . 3 . . Full Trace Events 3 | . 1 . . . 1 1 . . . . . Feedback Events . | . . . . . . . . . . . . Feedback Blocked . | . . . . . . . . . . . . Robot Schematics Acquired . | . . . . . . . . . . . . Robots Built . | . . . . . . . . . . . . Matter . | . . . . . . . . . . . . Time . | . . . . . . . . . . . . Total Robot Build Rating . | . . . . . . . . . . . . Part Schematics Acquired . | . . . . . . . . . . . . Parts Built . | . . . . . . . . . . . . Matter . | . . . . . . . . . . . . Time . | . . . . . . . . . . . . Total Part Build Rating . | . . . . . . . . . . . . Parts Repaired . | . . . . . . . . . . . . Time . | . . . . . . . . . . . . Parts Recycled . | . . . . . . . . . . . . Recycled Matter . | . . . . . . . . . . . . Retrieved Matter . | . . . . . . . . . . . . Retrieved Components . | . . . . . . . . . . . . Parts Scanalyzed . | . . . . . . . . . . . . Part Schematics Acquired . | . . . . . . . . . . . . Parts Damaged . | . . . . . . . . . . . . Bothacking | -11 -10 -10 -10 -9 -8 -7 -7 -7 -6 -6 -6 ------------ Run | Scr Mat Min Exi Min Mat Fac Low Low Fac Low Low Used RIF Installer . | . . . . . . . . . . . . Robots Hacked . | . . . . . . . . . . . . Non-combat . | . . . . . . . . . . . . Combat . | . . . . . . . . . . . . Robot Hacks Applied . | . . . . . . . . . . . . Relay Couplers Released . | . . . . . . . . . . . . Robots Rewired . | . . . . . . . . . . . . Allies Hacked . | . . . . . . . . . . . . Hacks Repelled . | . . . . . . . . . . . . Allies | -11 -10 -10 -10 -9 -8 -7 -7 -7 -6 -6 -6 -------- Run | Scr Mat Min Exi Min Mat Fac Low Low Fac Low Low Total Allies . | . . . . . . . . . . . . Largest Group . | . . . . . . . . . . . . Highest-Rated Group . | . . . . . . . . . . . . Highest-Rated Ally . | . . . . . . . . . . . . Total Orders . | . . . . . . . . . . . . Ally Attacks . | . . . . . . . . . . . . Total Damage . | . . . . . . . . . . . . Kills . | . . . . . . . . . . . . Allies Corrupted . | . . . . . . . . . . . . Allies Melted . | . . . . . . . . . . . . Intel | -11 -10 -10 -10 -9 -8 -7 -7 -7 -6 -6 -6 ------- Run | Scr Mat Min Exi Min Mat Fac Low Low Fac Low Low Robot Analysis Total . | . . . . . . . . . . . . Derelict Logs Recovered 3 | . . 1 . . . . 2 . . . . Drone Launches . | . . . . . . . . . . . . Drone Recoveries . | . . . . . . . . . . . . Exploration | -11 -10 -10 -10 -9 -8 -7 -7 -7 -6 -6 -6 ------------- Run | Scr Mat Min Exi Min Mat Fac Low Low Fac Low Low Turns Passed 1502 | 78 146 237 142 39 94 122 176 25 209 165 69 Spaces Moved 2330 | 94 163 325 275 52 123 223 346 35 315 241 138 Core 2330 | 94 163 325 275 52 123 223 346 35 315 241 138 Treads . | . . . . . . . . . . . . Legs . | . . . . . . . . . . . . Wheels . | . . . . . . . . . . . . Hover . | . . . . . . . . . . . . Flight . | . . . . . . . . . . . . Fastest Speed 50 | 50 50 50 50 50 50 50 50 50 50 50 50 Average Speed 50 | 50 50 50 50 50 50 50 50 70 50 50 50 Slowest Speed 150 | 50 50 50 50 50 50 50 50 150 100 50 50 Overloaded Moves . | . . . . . . . . . . . . Propulsion Burnouts . | . . . . . . . . . . . . Robots Hopped . | . . . . . . . . . . . . Cave-ins Triggered . | . . . . . . . . . . . . Exploration Rate (%) 31 | 5 37 69 70 17 19 9 56 9 12 43 35 Regions Visited 11 Branch Regions 7 Pre-discovered Areas 2 | . . 1 1 . . . . . . . . Known Exits Taken 2 | . 1 . . . . . . . 1 . . Unknown Exits Taken 9 | 1 . 1 1 1 1 1 1 1 . 1 . Scrap Searched 7 | . . 1 . . . . 3 1 . 2 . Spaces Dug 22 | . . . . . 1 . . . 6 15 . Terrain Destroyed 22 | . . . . . 1 . . . 6 15 . Melee 22 | . . . . . 1 . . . 6 15 . Projectile . | . . . . . . . . . . . . AOE . | . . . . . . . . . . . . Terrain Rammed . | . . . . . . . . . . . . Walls Destroyed . | . . . . . . . . . . . . Machines Disabled . | . . . . . . . . . . . . Actions | -11 -10 -10 -10 -9 -8 -7 -7 -7 -6 -6 -6 --------- Run | Scr Mat Min Exi Min Mat Fac Low Low Fac Low Low Total 2547 | 112 202 368 280 64 155 232 347 35 354 260 138 Wait 74 | 1 7 8 . 11 22 9 . . 16 . . Move 2319 | 93 162 324 274 51 122 222 345 34 314 240 138 Hop . | . . . . . . . . . . . . Pick Up 24 | 6 3 2 3 1 4 . . . 4 1 . Fast Attach 11 | 3 . 1 . . . . 2 1 4 . . Attach 4 | . 1 1 . . . . . . . 2 . Detach 1 | . 1 . . . . . . . . . . Swap 8 | . . 3 . . 2 . . . 3 . . Drop 22 | 2 2 4 3 1 4 . . . 6 . . Fire 60 | 7 26 25 . . . 1 . . 1 . . Melee 23 | . . . . . 1 . . . 6 16 . Ram 1 | . . . . . . . . . . 1 . Kick . | . . . . . . . . . . . . Crush . | . . . . . . . . . . . . Escape Stasis . | . . . . . . . . . . . . Rewire . | . . . . . . . . . . . . Trap . | . . . . . . . . . . . . Miscellaneous . | . . . . . . . . . . . . Route ------- -11/Scrapyard -10/Materials (discovered 2 exits: [*Mat] / *Min) -10/Mines (discovered 3 exits: [*Mat x2] / *Exi) -10/Exiles -9/Mines -8/Materials -7/Factory -7/Lower Caves -7/Lower Caves -6/Factory (discovered 2 exits: *Low x2) -6/Lower Caves -6/Lower Caves History --------- Turn | Location | Event 12 | -11/Scrapyard | Discovered new exit (range 15) 79 | -11/Scrapyard | Entered Materials 89 | -10/Materials | Identified exit to Mines 106 | -10/Materials | Discovered new exit (range 7) 225 | -10/Materials | Entered Mines 249 | -10/Mines | Discovered new exit (range 11) 321 | -10/Mines | Met a Derelict who couldn't figure out how to use a Trap Extractor 350 | -10/Mines | Discovered new exit (range 8) 453 | -10/Mines | Learned location of Storage (-9) 460 | -10/Mines | Deemed a non-threat by the Exiles lab entrance 460 | -10/Mines | Discovered new exit (range 5) 462 | -10/Mines | Entered Exiles 475 | -10/Exiles | Met 8R-AWN 483 | -10/Exiles | Met EX-HEX 508 | -10/Exiles | Met EX-DEC 518 | -10/Exiles | Learned location of Zion (-6) 527 | -10/Exiles | Met EX-BIN 534 | -10/Exiles | Aligned with FarCom system 535 | -10/Exiles | Given EX-Vault access code 546 | -10/Exiles | Opened EX-Vault 550 | -10/Exiles | Found 0b10 Alert Chip 553 | -10/Exiles | Found Cloak of Protection 564 | -10/Exiles | Warned to stay clear of 0b10 Research branches 574 | -10/Exiles | Build established: Scavenger-Mutant 600 | -10/Exiles | Discovered new exit (range 10) 604 | -10/Exiles | Stole two prototypes: 0b10 Alert Chip, Cloak of Protection 604 | -10/Exiles | Entered Mines 612 | -9/Mines | Met a Derelict shopkeep closing up shop 616 | -9/Mines | Met a Derelict bent on vengeance 637 | -9/Mines | Discovered new exit (range 13) 643 | -9/Mines | Entered Materials 643 | -8/Materials | Evolved 4 slots: Utility x4 729 | -8/Materials | Discovered new exit (range 16) 737 | -8/Materials | Entered Factory 737 | -7/Factory | Evolved 2 slots: Utility x2 739 | -7/Factory | FarCom data flow suspended 839 | -7/Factory | Discovered new exit (range 9) 859 | -7/Factory | Entered Lower Caves 859 | -7/Lower Caves | Spotted B-75 Beast 896 | -7/Lower Caves | Core integrity fell below 50% 900 | -7/Lower Caves | Learned Factory terminal intel 921 | -7/Lower Caves | Encountered a Warlord checkpoint 964 | -7/Lower Caves | Learned Factory emergency access door positions 1029 | -7/Lower Caves | Discovered new exit (range 14) 1035 | -7/Lower Caves | Entered another Lower Caves area 1040 | -7/Lower Caves | Build established: Mutant 1047 | -7/Lower Caves | Discovered new exit (range 12) 1049 | -7/Lower Caves | Core integrity fell below 20% 1060 | -7/Lower Caves | Entered Factory 1060 | -6/Factory | Evolved 2 slots: Utility x2 1062 | -6/Factory | Loaded intel: 20 terminal locations 1141 | -6/Factory | Spotted B-75 Beast 1214 | -6/Factory | Identified exit to Lower Caves 1269 | -6/Factory | Entered Lower Caves 1269 | -6/Lower Caves | Spotted B-75 Beast 1294 | -6/Lower Caves | Encountered a Warlord checkpoint 1316 | -6/Lower Caves | Lost 3 parts (2u1w) 1407 | -6/Lower Caves | Attracted the attention of an 0b10 checkpoint 1421 | -6/Lower Caves | Core integrity fell below 50% 1426 | -6/Lower Caves | Discovered new exit (range 16) 1434 | -6/Lower Caves | Entered another Lower Caves area 1477 | -6/Lower Caves | Core integrity fell below 20% 1503 | -6/Lower Caves | Destroyed by S-27 Virus with Autogun Last Messages --------------- 01307_ Found 41 Matter. 01309_ Acquired Energy Well. 01310_ Acquired 33 matter. 01310_ B6-C0O(k) breaks down the debris. 01312_ 08-AP8(k) breaks down the debris. 01365_ The unstable cave ceiling collapses. 01405_ Searching scrap... 01405_ Found Hvy. Flak Cannon. 01405_ Found 24 Matter. 01407_ Y-54 Guardian: "INTERCEPTING UNREGISTERED DERELICT." 01408_ L-41 Fighter destroyed. 01410_ Acquired 10 matter. 01426_ EXIT=FOUND LOCATION=UNKNOWN GOAL=ESCAPE 01436_ Penetrated by Slug. 01445_ Power Sword destroyed. 01481_ PN-J4U(k) breaks down the debris. 01485_ PN-J4U(k) destroyed. 01494_ YJ-3LC(k) destroyed. Map ----- +----------------------------------------------------+ | ?????????????????????????????????????????? ### #? | | ?????????????????????????????????????????? ? | | ?????????????????????????????????????????? ?? | | ?????????????????????????????????????????? ?? | | ?????????????????????????????????????????? ??? | | ????????????????##???????????????????????? ??? | | ???????????????## ####???????????????????? ???? | | ???????????????# ##???????????????????# ???? | | ???????????????# ####??????###?####??# #???? | | ???????????????## ##???### ### ##?# #???? | | ????????????????#### #?### ### ##??? | | ???????????????????## #### !% ## #??? | | ????????????????????## s## % #??? | | ?????????????????????# ## #??? | | ?????????????????????# ssss #### ##??? | | ?????????????????????# ##??###### ##???? | | ?????????????????????# %!###???????## ##???? | | ?????????????????????## ##????????## ####? | | ??????????????????????## ##????????# ## | | ???????????????????????# #????????# # | | ???????????????????????# ##??## ## ## | | ???????????????????????# ## ## | | ???????????????????????# ## | | ???????????????????????# ### #### | | ???????????????????????## ### ##???## ### | | ????????????????????????#@ ## #??????# ##?# | | ???????????????????????# #??????# #??# | | ???????????????????????# ## #????? ##??# | | ???????????????????????# #### ##??? ##??# | | ??????????????????????? #??#?#???# #???## | | ??????????????????????? ##????????# ##????? | | ?????????????????????? ##????????# #??????# | | ??????????????????????#####?????????# ???????# | | ??????????????????????????????????? ???????# | | ??????????????????????????????????$ ??????? | | ?????????????????????????????????#### ?????? | | ????????????????????????????????????#### ?????? | | ???????????????????????????????????????# ?????## | | ??????????????????????????????????????? ??????### | | ?????????????????????????????????????????????????? | | ?????????????????????????????????????????????????? | | ?????????????????????????????????????????????????? | | ?????????????????????????????????????????????????? | | ?????????????????????????????????????????????????? | | ?????????????????????????????????????????????????? | | ?????????????????????????????????????????????????? | | ?????????????????????????????????????????????????? | | ?????????????????????????????????????????????????? | | ?????????????????????????????????????????????????? | | ?????????????????????????????????????????????????? | +----------------------------------------------------+ Best States ------------- Heat Dissipation 37 Energy Generation 5 Energy Capacity 100 Matter Stores 300 Matter Capacity 300 Sight Range 22 Robot Scan Range 15 Terrain Scan Range 16 Terrain Scan Density 60 Armor Coverage 225 Evasion (%) 50 Armor Integrity Analysis 20 Item Schematics ----------------- None Robot Schematics ------------------ None Fabricated ------------ Nothing Alien Tech Used ----------------- None Achievements -------------- None Challenges ------------ None Game ------ Seed GreatProtonThruster Manual? 0 Play Time 00:26:19 Cumulative 405.3 hours Start 2021.08.03 @ 20:50:52 End 2021.08.03 @ 21:25:19 Sessions 1 Manual Loads 0 Difficulty Rogue Special Mode None Game No. 386 Rogue 171 Adventurer 112 Explorer 103 Win Type - Total 29 Types 21/0/5/2/0/0/0/1/0 Lore% 85 Gallery% 91 Achievement% 76 Wizard Run 0 Options --------- ASCII 0 Keyboard 0 Movement Numpad Keybinds 0 Fullscreen 2 Font 18/TerminusBold Map View 76x50 Tactical HUD 1 Map Filters NONE Filters NONE Steam 1 RUN: 6cac232c-50fa-4dd3-813a-119b6ae6e99b